Cogmind - Beta 11.1 @@@ ROGUE MODE // 2022.09.25 @ 02:37:47 Player: DuckBoy Result: Destroyed by as-77193 with Assembled Focal Cannon Performance ------------- Evolutions (3) 1500 Regions Visited (10) 2000 Robots Destroyed (89) 445 Value Destroyed (2872) 2872 Prototype IDs (17) 340 Alien Tech Used (0) 0 Bonus (2026) 2026 TOTAL SCORE: 9183 Bonus ------- High Alert Combat Kills 126 Aligned with FarCom 300 Met Imprinter 300 Was Imprinted 300 Destroyed Z-Imprinter 1000 Cogmind --------- Core Integrity 0/700 Matter 246/300 Energy 554/700 System Corruption 0% Temperature Warning (355) Movement Core (1350) Ox26 Location -7/Deep Caves Parts ------- > --- POWER (1) -------- (None) > --- PROPULSION (2) --- (None) > --- UTILITY (6) ------ Experimental Heat Sink Huge Storage Unit Zionite Biocell > --- WEAPON (4) ------- (None) > --- INVENTORY (25) --- Enhanced Nuclear Core Zionite Glidesys I Nuclear Pulse Thruster Nuclear Pulse Thruster Nuclear Pulse Thruster Compact Battery (200) Compact Battery (200) Zionite Metafield Generator Seismic Detector Experimental Reaction Control System Plasma Cannon Longsword +1 Peak State ------------ > --- POWER ------------ Zionite Light DM Reactor > --- PROPULSION ------- Compact Wheel Zionite Glidesys I > --- UTILITY ---------- Improved Heat Sink Experimental Heat Sink Huge Storage Unit Zionite Metafield Generator Experimental Reaction Control System Zionite Weapon Casing > --- WEAPON ----------- Zionite Laser-S Zionite Laser-M Plasma Cannon Plasma Cannon > --- INVENTORY -------- Enhanced Nuclear Core Nuclear Pulse Thruster Nuclear Pulse Thruster Nuclear Pulse Thruster Experimental Heat Sink Compact Battery Compact Battery Signal Interpreter Seismic Detector Plasma Cannon Longsword +1 Self-destruct Interrupter [Rating: 78] Favorites ----------- Power Enhanced Nuclear Core Engine Light Ion Engine Power Core Enhanced Nuclear Core Reactor Zionite Light DM Reactor Propulsion Compact Wheel Treads Armored Treads Wheel Compact Wheel Hover Unit Zionite Glidesys I Utility Improved Cooling System Device Improved Cooling System Storage Huge Storage Unit Processor Transport Network Coupler Protection Hardened Light Armor Plating Weapon Gatling Laser Energy Gun Gatling Laser Energy Cannon Plasma Cannon Ballistic Gun Light Assault Rifle Launcher Rocket Launcher Slashing Weapon Longsword +1 Build | -11 -10 -10 -10 -9 -8 -7 -7 -7 -7 -7 ------- Run | Scr Mat Min Exi Min Mat Fac Low Low Zio Dee Slots Evolved 6 | . . . . . 4 2 . . . . Power . | . . . . . . . . . . . Propulsion . | . . . . . . . . . . . Utility 4 | . . . . . 2 2 . . . . Weapon 2 | . . . . . 2 . . . . . Parts Attached 109 | 6 3 2 6 5 22 20 4 2 6 33 Power 9 | 1 . 1 . 1 2 1 . . . 3 Engine 3 | 1 . 1 . . . . . . . 1 Core 5 | . . . . 1 2 1 . . . 1 Reactor 1 | . . . . . . . . . . 1 Propulsion 16 | 2 . . . 1 5 1 3 . 1 3 Treads 8 | . . . . 1 4 . 2 . . 1 Leg . | . . . . . . . . . . . Wheel 7 | 2 . . . . 1 1 1 . 1 1 Hover 1 | . . . . . . . . . . 1 Flight . | . . . . . . . . . . . Utility 39 | 1 3 . 2 1 7 7 1 1 1 15 Device 17 | . . . 1 1 2 3 1 . 1 8 Storage 6 | 1 2 . 1 . . . . . . 2 Processor 2 | . 1 . . . . . . . . 1 Hackware . | . . . . . . . . . . . Protection 14 | . . . . . 5 4 . 1 . 4 Artifact . | . . . . . . . . . . . Weapon 45 | 2 . 1 4 2 8 11 . 1 4 12 Energy Gun 16 | . . . . . 3 8 . 1 2 2 Energy Cannon 9 | . . . 2 . . . . . . 7 Ballistic Gun 12 | 2 . 1 . 2 5 1 . . . 1 Ballistic Cannon . | . . . . . . . . . . . Launcher 1 | . . . . . . . . . . 1 Special Weapon . | . . . . . . . . . . . Impact Weapon . | . . . . . . . . . . . Slashing Weapon 7 | . . . 2 . . 2 . . 2 1 Piercing Weapon . | . . . . . . . . . . . Special Melee Weapon . | . . . . . . . . . . . Unidentified Prototypes 16 | . . . 3 . 2 1 . . . 10 Parts Lost 45 | . . . 2 . 5 5 2 1 . 30 Power 4 | . . . 1 . . . . . . 3 Propulsion 6 | . . . . . 1 . 1 . . 4 Utility 17 | . . . 1 . 2 2 1 . . 11 Weapon 18 | . . . . . 2 3 . 1 . 12 Highest Loss Streak 18 | . . . 2 . 1 2 2 1 . 18 To Critical Strikes . | . . . . . . . . . . . Average Slot Usage (%) 94 | . 86 100 92 86 97 87 92 99 100 90 Engine 1 | . 14 14 13 . . . . . . . Core 6 | . . . . 10 9 7 7 7 7 2 Treads 4 | . . . . 5 9 . 5 7 6 1 Wheel 9 | . 28 28 28 22 9 7 6 7 7 7 Device 15 | . . . . 11 11 12 15 23 23 16 Storage 8 | . 14 14 13 14 9 7 7 7 7 9 Processor 1 | . 1 14 14 . . . . . . . Protection 13 | . . . . . 13 20 17 15 15 10 Energy Gun 19 | . . . . . 6 22 30 29 26 16 Energy Cannon 1 | . . . 1 1 . . . . . 10 Ballistic Gun 7 | . 28 28 18 10 28 6 . . . 1 Slashing Weapon 1 | . . . 1 8 . . . . 3 . Naked Turns . | . . . . . . . . . . . Heaviest Build 124 | 10 85 85 96 89 107 123 123 119 117 124 Greatest Support 32 | 26 26 26 26 26 16 28 28 16 32 32 Greatest Overweight (x) 7 | . 3 3 3 5 6 6 7 7 7 7 Average Overweight (x) 5 | . . 3 2 3 5 4 5 7 6 6 Largest Inventory Capacity 25 | 8 25 25 25 25 25 25 25 25 25 25 Average Capacity 24 | 7 14 25 24 25 25 25 25 25 25 25 Most Carried 25 | 1 11 15 19 19 25 25 25 25 25 25 Average Carried 22 | . 4 13 16 18 22 24 24 23 24 17 Final Capacity 25 | 8 25 25 25 25 25 25 25 25 25 25 Final Carried 25 | 1 11 15 18 18 25 25 24 24 25 12 Class Distribution -------------------- 54% | Scavenger-Tank 14% | Scavenger-Mutant 14% | Tank 12% | Mutant Dominant Class ---------------- Mutant | -10/Materials Mutant | -10/Mines Mutant | -10/Exiles Mutant | -9/Mines Scavenger-Tank | -8/Materials Scavenger-Tank | -7/Factory Tank | -7/Lower Caves Scavenger-Tank | -7/Lower Caves Scavenger-Tank | -7/Zion Scavenger-Tank | -7/Deep Caves Resources | -11 -10 -10 -10 -9 -8 -7 -7 -7 -7 -7 ----------- Run | Scr Mat Min Exi Min Mat Fac Low Low Zio Dee Matter Collected 1728 | 199 133 30 . 120 615 348 25 25 20 213 Remotely . | . . . . . . . . . . . Salvage Created 3470 | 52 185 94 . 162 1291 1084 255 175 . 172 Parts 180 | 2 13 10 . 11 75 46 9 7 . 7 Haulers Intercepted 3 | . 2 . . . 1 . . . . . Recyclers Shooed . | . . . . . . . . . . . Parts Field Recycled . | . . . . . . . . . . . Retrieved Matter . | . . . . . . . . . . . Parts Self-Destructed 13 | . . . . . . . 9 2 2 . Prevented 2 | . . . . . . . . 2 . . Kills | -11 -10 -10 -10 -9 -8 -7 -7 -7 -7 -7 ------- Run | Scr Mat Min Exi Min Mat Fac Low Low Zio Dee Combat Hostiles Destroyed 73 | . 2 3 . 6 25 23 5 4 . 5 Guns 63 | . 2 3 . 3 24 20 4 4 . 3 Cannons 5 | . . . . 3 . . . . . 2 AOE 1 | . . . . . 1 . . . . . Classes Destroyed 16 | 1 3 1 . . 3 4 1 1 . 2 Builder 2 | . . . . . . 2 . . . . Hauler 3 | . 2 . . . 1 . . . . . Recycler 6 | 1 . 1 . . 2 2 . . . . Operator 1 | . . . . . 1 . . . . . Watcher 7 | . 1 . . . 3 3 . . . . Swarmer 24 | . . 3 . 3 7 11 . . . . Grunt 23 | . 2 . . 3 11 3 2 2 . . Brawler 2 | . . . . . . 1 . 1 . . Duelist 2 | . . . . . 1 . 1 . . . Sentry 10 | . . . . . 6 4 . . . . Programmer 4 | . . . . . . 3 1 . . . Heavy 1 | . . . . . . 1 . . . . Behemoth 1 | . . . . . . . 1 . . . Z-Light 1 | . . . . . . . . . . 1 Master Thief 1 | . . . . . . . . 1 . . Assembled 3 | . . . . . . . . . . 3 Best Kill Streak 5 | 1 3 3 . 3 4 5 3 3 . 3 Combat Bots Only 4 | . 2 3 . 3 4 4 3 3 . 3 Max Kills in Single Turn 2 | 1 1 1 . 1 2 2 2 1 . 1 Gunslinging 1 | . . . . . 1 . 1 . . . Exploded 1 | . . . . . 1 . . . . . Melee . | . . . . . . . . . . . Uniques/NPCs Destroyed 1 | . . . . . . . . . . 1 Z-Imprinter (-7/Deep Caves) Combat | -11 -10 -10 -10 -9 -8 -7 -7 -7 -7 -7 -------- Run | Scr Mat Min Exi Min Mat Fac Low Low Zio Dee Damage Taken 6607 | . 119 31 331 129 895 1240 319 21 . 3522 Core 1013 | . 45 . 120 24 103 132 34 . . 555 Absorbed by Shields . | . . . . . . . . . . . Redirected to Shielding 119 | . . . . . . . . . . 119 Regen/Repaired (Parts) 109 | . . . . . 109 . . . . . Core Remaining (%) 68 | 100 . . . 24 81 . . . . . Volleys Fired 211 | 2 19 5 . 12 78 51 7 6 . 31 Largest 4 | 2 2 2 . 2 4 4 4 4 . 4 Hottest 315 | 40 40 40 . 120 155 309 309 309 . 315 Shots Fired 729 | 4 38 10 . 19 304 198 28 23 . 105 Gun 665 | 4 38 10 . 14 304 198 28 23 . 46 Cannon 63 | . . . . 5 . . . . . 58 Launcher 1 | . . . . . . . . . . 1 Special . | . . . . . . . . . . . Kinetic 371 | 4 38 10 . 14 248 48 . . . 9 Thermal 336 | . . . . 5 36 149 28 23 . 95 Explosive 1 | . . . . . . . . . . 1 Electromagnetic 21 | . . . . . 20 1 . . . . Robot Hit Streak 34 | 3 22 32 . 34 13 13 13 5 . 10 Robot Miss Streak 15 | . 3 . . 3 7 4 2 3 . 15 Penetration Max . | . . . . . . . . . . . Secondary Targets 10 | . 1 1 . 2 5 . 1 . . . Max Gunslinging Chain 1 | . 1 1 . 1 1 . 1 . . . Shots Hit Robots 454 | 3 29 10 . 9 171 142 27 17 . 46 Core Hits 222 | 3 13 5 . 7 75 74 17 13 . 15 Critical Kills . | . . . . . . . . . . . Critical Parts Destroyed 3 | . 1 . . . 2 . . . . . Critical Strikes 7 | . 1 . . . 3 2 . . . 1 Burn 3 | . . . . . . 2 . . . 1 Destroy 4 | . 1 . . . 3 . . . . . Melee Attacks 115 | . . . 1 . . 6 . . 100 8 Impact . | . . . . . . . . . . . Slashing 115 | . . . 1 . . 6 . . 100 8 Piercing . | . . . . . . . . . . . Sneak Attacks . | . . . . . . . . . . . Combat Hostiles . | . . . . . . . . . . . Follow-up Attacks . | . . . . . . . . . . . Damage Inflicted 7888 | 20 218 86 . 251 2462 2632 593 417 . 1209 Guns 6497 | 20 218 86 . 71 2042 2632 593 417 . 418 Cannons 830 | . . . . 180 . . . . . 650 Explosions 561 | . . . . . 420 . . . . 141 Melee . | . . . . . . . . . . . Ramming . | . . . . . . . . . . . Kinetic 2131 | 20 218 86 . 71 1391 310 . . . 35 Thermal 5368 | . . . . 180 823 2322 593 417 . 1033 Explosive 184 | . . . . . 43 . . . . 141 Electromagnetic 205 | . . . . . 205 . . . . . Impact . | . . . . . . . . . . . Slashing . | . . . . . . . . . . . Piercing . | . . . . . . . . . . . Highest Corruption 4 | . . . 4 4 . . . . . . Average Corruption 4 | . . . 4 4 . . . . . . Corruption Purged . | . . . . . . . . . . . Corruption Blocked . | . . . . . . . . . . . Effects 3 | . . . . 3 . . . . . . Matter Fused 1 | . . . . 1 . . . . . . Energy Discharges 1 | . . . . 1 . . . . . . Data Loss (minor) 1 | . . . . 1 . . . . . . Overload Shots . | . . . . . . . . . . . Overflow Damage 112 | . . . . . 86 . . . . 26 Projectiles 26 | . . . . . . . . . . 26 Explosions 86 | . . . . . 86 . . . . . Melee . | . . . . . . . . . . . Knockbacks . | . . . . . . . . . . . Impact . | . . . . . . . . . . . Kinetic . | . . . . . . . . . . . Secondary . | . . . . . . . . . . . Self-Inflicted Damage . | . . . . . . . . . . . Shots . | . . . . . . . . . . . Rammed . | . . . . . . . . . . . Targets Rammed . | . . . . . . . . . . . Kicked . | . . . . . . . . . . . Crushed . | . . . . . . . . . . . Highest Temperature 426 | . 18 . . 280 356 340 138 2 . 426 Average Temperature 103 | . 11 . . 166 79 94 59 2 . 174 Received Heat Transfer 1458 | . 72 . . . 306 204 45 9 . 822 Effects 5 | . . . . . . . . . . 5 Energy Bleed 2 | . . . . . . . . . . 2 Interference 2 | . . . . . . . . . . 2 Damage (minor) 1 | . . . . . . . . . . 1 Siege Activations . | . . . . . . . . . . . Robots Corrupted . | . . . . . . . . . . . Combat Hostiles . | . . . . . . . . . . . Parts Fried . | . . . . . . . . . . . Impact Corruptions . | . . . . . . . . . . . Robots Melted 4 | . . . . . . 3 1 . . . Combat Hostiles 4 | . . . . . . 3 1 . . . Parts Melted 29 | . . . . . . 19 9 1 . . Heat Transferred 10200 | . . . . 400 1212 5093 1222 911 . 1362 Parts Sabotaged . | . . . . . . . . . . . Parts Stolen 4 | . . . . . . . . 4 . . Parts Stripped . | . . . . . . . . . . . Power Chain Reactions 1 | . . . . . 1 . . . . . Missiles Intercepted . | . . . . . . . . . . . Alert | -11 -10 -10 -10 -9 -8 -7 -7 -7 -7 -7 ------- Run | Scr Mat Min Exi Min Mat Fac Low Low Zio Dee Peak Influence 549 | 5 95 126 . 155 478 549 . . . . Initial 60 | . 3 36 . . 60 29 . . . . Average 207 | 1 47 95 . 105 170 285 . . . . Maximum Alert Level 2 | . . . . . 2 2 . . . . Low Security (%) 61 | 100 100 100 . 100 73 38 . . . . Level 1 18 | . . . . . 18 25 . . . . Level 2 20 | . . . . . 8 36 . . . . Level 3 . | . . . . . . . . . . . Level 4 . | . . . . . . . . . . . Level 5 . | . . . . . . . . . . . High Security . | . . . . . . . . . . . Max Security . | . . . . . . . . . . . Squads Dispatched 6 | . . . . . 2 4 . . . . Investigation 2 | . . . . . 1 1 . . . . Extermination 2 | . . . . . . 2 . . . . Reinforcement 2 | . . . . . 1 1 . . . . Assault . | . . . . . . . . . . . Garrison . | . . . . . . . . . . . Intercept . | . . . . . . . . . . . Searches Triggered . | . . . . . . . . . . . Construction Impeded . | . . . . . . . . . . . Haulers Reinforced . | . . . . . . . . . . . Active Scanning Responses . | . . . . . . . . . . . Cargo Convoy Interrupts . | . . . . . . . . . . . Stealth | -11 -10 -10 -10 -9 -8 -7 -7 -7 -7 -7 --------- Run | Scr Mat Min Exi Min Mat Fac Low Low Zio Dee Distress Signals 8 | . 1 . . . 5 2 . . . . Communications Jammed . | . . . . . . . . . . . Distress Signals . | . . . . . . . . . . . Times Spotted 109 | . 4 3 7 6 36 34 5 7 . 7 Peak Tracking Total 9 | . 3 3 9 3 5 4 3 4 . 3 Tactical Retreats 5 | . . . . . 3 2 . . . . Traps | -11 -10 -10 -10 -9 -8 -7 -7 -7 -7 -7 ------- Run | Scr Mat Min Exi Min Mat Fac Low Low Zio Dee Traps Triggered 1 | . . . . . . 1 . . . . Indirectly . | . . . . . . . . . . . Trap Hack Attempts . | . . . . . . . . . . . Triggered . | . . . . . . . . . . . Disarmed . | . . . . . . . . . . . Reprogrammed . | . . . . . . . . . . . Reused . | . . . . . . . . . . . Traps Extracted . | . . . . . . . . . . . Installed . | . . . . . . . . . . . Triggered 1 | . . . . . . . . 1 . . Machines | -11 -10 -10 -10 -9 -8 -7 -7 -7 -7 -7 ---------- Run | Scr Mat Min Exi Min Mat Fac Low Low Zio Dee Machines Disabled 5 | . . . 1 . 3 . . . . 1 Max in Single Turn 2 | . . . 1 . 2 . . . . 1 Garrison Access 2 | . . . . . . 2 . . . . Machines Sabotaged . | . . . . . . . . . . . Garrisons Compromised . | . . . . . . . . . . . Overloaded Fab Kills . | . . . . . . . . . . . Hacking | -11 -10 -10 -10 -9 -8 -7 -7 -7 -7 -7 --------- Run | Scr Mat Min Exi Min Mat Fac Low Low Zio Dee Machines Accessed 14 | . 1 . 1 . 4 8 . . . . Terminals 7 | . 1 . . . 2 4 . . . . Fabricators . | . . . . . . . . . . . Repair Stations 1 | . . . . . 1 . . . . . Recycling Units 1 | . . . . . . 1 . . . . Scanalyzers 2 | . . . . . 1 1 . . . . Garrison Access 2 | . . . . . . 2 . . . . Total Hacks 37 | . 2 . 4 . 13 18 . . . . Successful 23 | . 1 . 4 . 9 9 . . . . Failed 14 | . 1 . . . 4 9 . . . . Catastrophic 3 | . . . . . . 3 . . . . Database Lockouts . | . . . . . . . . . . . Manual 14 | . 2 . 1 . 5 6 . . . . Terminals 16 | . 2 . . . 5 9 . . . . Fabricators . | . . . . . . . . . . . Repair Stations 2 | . . . . . 2 . . . . . Recycling Units 2 | . . . . . . 2 . . . . Scanalyzers 8 | . . . . . 6 2 . . . . Garrison Access 5 | . . . . . . 5 . . . . Terminal Hacks 11 | . 1 . 4 . 2 4 . . . . Record 4 | . . . 4 . . . . . . . Branch Access Points 1 | . . . . . . 1 . . . . Emergency Access Points 2 | . . . . . . 2 . . . . Unreport Threat 2 | . . . . . 2 . . . . . Hauler Manifests 1 | . 1 . . . . . . . . . Zone Layout 1 | . . . . . . 1 . . . . Fabricator Hacks . | . . . . . . . . . . . Repair Station Hacks 2 | . . . . . 2 . . . . . Scan Component 1 | . . . . . 1 . . . . . Repair 1 | . . . . . 1 . . . . . Recycling Unit Hacks . | . . . . . . . . . . . Scanalyzer 6 | . . . . . 5 1 . . . . Insert Component 4 | . . . . . 3 1 . . . . Analyze 2 | . . . . . 2 . . . . . Garrison Access Hacks 1 | . . . . . . 1 . . . . Seal Access 1 | . . . . . . 1 . . . . Unauthorized Hacks 3 | . . . . . . 3 . . . . Terminals 1 | . . . . . . 1 . . . . Botnet 1 | . . . . . . 1 . . . . Fabricators . | . . . . . . . . . . . Repair Stations . | . . . . . . . . . . . Recycling Units 1 | . . . . . . 1 . . . . Mask 1 | . . . . . . 1 . . . . Scanalyzers . | . . . . . . . . . . . Garrison Access 1 | . . . . . . 1 . . . . Jam 1 | . . . . . . 1 . . . . Data Cores Recovered . | . . . . . . . . . . . Used . | . . . . . . . . . . . Hacking Detections 10 | . 1 . . . 2 7 . . . . Full Trace Events 1 | . . . . . 1 . . . . . Feedback Events . | . . . . . . . . . . . Feedback Blocked . | . . . . . . . . . . . Robot Schematics Acquired 2 | . . . . . . . . . 2 . Robots Built . | . . . . . . . . . . . Authchips . | . . . . . . . . . . . Time . | . . . . . . . . . . . Total Robot Build Rating . | . . . . . . . . . . . Part Schematics Acquired 18 | . . . . . 2 . . . 16 . Parts Built . | . . . . . . . . . . . Authchips . | . . . . . . . . . . . Time . | . . . . . . . . . . . Total Part Build Rating . | . . . . . . . . . . . Parts Repaired 1 | . . . . . 1 . . . . . Time 26 | . . . . . 26 . . . . . Parts Recycled . | . . . . . . . . . . . Recycled Matter . | . . . . . . . . . . . Retrieved Matter . | . . . . . . . . . . . Retrieved Components . | . . . . . . . . . . . Parts Scanalyzed 3 | . . . . . 2 1 . . . . Part Schematics Acquired 2 | . . . . . 2 . . . . . Parts Damaged . | . . . . . . . . . . . Bothacking | -11 -10 -10 -10 -9 -8 -7 -7 -7 -7 -7 ------------ Run | Scr Mat Min Exi Min Mat Fac Low Low Zio Dee Used RIF Installer . | . . . . . . . . . . . Robots Hacked . | . . . . . . . . . . . Non-combat . | . . . . . . . . . . . Combat . | . . . . . . . . . . . Robot Hacks Applied . | . . . . . . . . . . . Relay Couplers Released . | . . . . . . . . . . . Fabnet Peak Effective % . | . . . . . . . . . . . Robots Rewired . | . . . . . . . . . . . Allies Hacked . | . . . . . . . . . . . Hacks Repelled . | . . . . . . . . . . . Allies | -11 -10 -10 -10 -9 -8 -7 -7 -7 -7 -7 -------- Run | Scr Mat Min Exi Min Mat Fac Low Low Zio Dee Total Allies 4 | . . . . . . . . . 4 . Largest Group 4 | . . . . . . . . . 4 . Highest-Rated Group 152 | . . . . . . . . . 152 . Highest-Rated Ally 39 | . . . . . . . . . 39 . Total Orders . | . . . . . . . . . . . Ally Attacks . | . . . . . . . . . . . Total Damage . | . . . . . . . . . . . Kills . | . . . . . . . . . . . Allies Corrupted . | . . . . . . . . . . . Allies Melted . | . . . . . . . . . . . Intel | -11 -10 -10 -10 -9 -8 -7 -7 -7 -7 -7 ------- Run | Scr Mat Min Exi Min Mat Fac Low Low Zio Dee Robot Analysis Total . | . . . . . . . . . . . Derelict Logs Recovered 2 | . . . . . . . . 1 1 . Drone Launches . | . . . . . . . . . . . Drone Recoveries . | . . . . . . . . . . . Exploration | -11 -10 -10 -10 -9 -8 -7 -7 -7 -7 -7 ------------- Run | Scr Mat Min Exi Min Mat Fac Low Low Zio Dee Turns Passed 9784 | 58 225 184 569 159 1256 1707 572 682 3032 1340 Spaces Moved 4652 | 42 146 117 404 74 447 841 285 318 1392 586 Core 2 | 2 . . . . . . . . . . Treads . | . . . . . . . . . . . Legs . | . . . . . . . . . . . Wheels 4650 | 40 146 117 404 74 447 841 285 318 1392 586 Hover . | . . . . . . . . . . . Flight . | . . . . . . . . . . . Fastest Speed 50 | 50 90 135 90 135 175 145 160 205 145 145 Average Speed 178 | 88 103 135 134 148 185 159 188 205 200 196 Slowest Speed 205 | 100 135 135 135 175 190 190 205 205 205 205 Overloaded Moves . | . . . . . . . . . . . Propulsion Burnouts . | . . . . . . . . . . . Robots Hopped . | . . . . . . . . . . . Cave-ins Triggered . | . . . . . . . . . . . Exploration Rate (%) 42 | 3 29 20 62 20 51 25 46 47 91 73 Regions Visited 10 Branch Regions 7 Pre-discovered Areas 3 | . . . 1 . . . . . 2 . Known Exits Taken 1 | . . . . . . 1 . . . . Unknown Exits Taken 9 | 1 1 1 1 1 1 . 1 1 1 . Scrap Searched 5 | . . . . 1 . . 1 . 3 . Spaces Dug 10 | . . . . . . 6 . . 4 . Terrain Destroyed 36 | . . . . . 12 6 . . 4 14 Melee 10 | . . . . . . 6 . . 4 . Projectile 6 | . . . . . . . . . . 6 AOE 20 | . . . . . 12 . . . . 8 Terrain Rammed . | . . . . . . . . . . . Walls Destroyed . | . . . . . . . . . . . Machines Disabled . | . . . . . . . . . . . Actions | -11 -10 -10 -10 -9 -8 -7 -7 -7 -7 -7 --------- Run | Scr Mat Min Exi Min Mat Fac Low Low Zio Dee Total 5539 | 56 188 134 429 106 721 1064 297 330 1525 689 Wait 338 | 6 9 9 . 15 140 116 . 1 23 19 Move 4642 | 41 145 116 403 73 446 840 284 317 1391 586 Hop . | . . . . . . . . . . . Pick Up 68 | 1 10 2 14 . 18 9 2 4 3 5 Fast Attach 32 | 6 3 . 4 2 5 4 . . . 8 Attach 36 | . . . 1 1 8 5 3 1 . 17 Detach 4 | . . . 1 1 . . . . . 2 Swap 42 | . . 2 1 2 10 11 1 1 6 8 Drop 43 | . 2 . 4 . 16 14 . . 2 5 Fire 211 | 2 19 5 . 12 78 51 7 6 . 31 Melee 115 | . . . 1 . . 6 . . 100 8 Ram . | . . . . . . . . . . . Kick . | . . . . . . . . . . . Crush . | . . . . . . . . . . . Escape Stasis 8 | . . . . . . 8 . . . . Rewire . | . . . . . . . . . . . Trap . | . . . . . . . . . . . Miscellaneous . | . . . . . . . . . . . Route ------- -11/Scrapyard -10/Materials -10/Mines (discovered 2 exits: [*Mat] / *Exi) -10/Exiles -9/Mines -8/Materials -7/Factory (discovered 3 exits: [*Fac] / *Low x2) -7/Lower Caves -7/Lower Caves -7/Zion (discovered 2 exits: [*Dee] / [*Pro]) -7/Deep Caves (discovered 1 exit: *Pro) History --------- Turn | Location | Event 23 | -11/Scrapyard | Discovered new exit (range 15) 59 | -11/Scrapyard | Entered Materials 136 | -10/Materials | Discovered new exit (range 8) 284 | -10/Materials | Entered Mines 291 | -10/Mines | Discovered new exit (range 8) 302 | -10/Mines | Build established: Mutant 461 | -10/Mines | Deemed a non-threat by the Exiles lab entrance 461 | -10/Mines | Discovered new exit (range 5) 468 | -10/Mines | Entered Exiles 501 | -10/Exiles | Met 8R-AWN 524 | -10/Exiles | Met EX-HEX 563 | -10/Exiles | Met EX-BIN 605 | -10/Exiles | Met EX-DEC 610 | -10/Exiles | Learned location of Zion (-7) 653 | -10/Exiles | Aligned with FarCom system 655 | -10/Exiles | Given EX-Vault access code 687 | -10/Exiles | Opened EX-Vault 697 | -10/Exiles | Found Prototype Energy Cannon 697 | -10/Exiles | Identified Gui. Plasma Cannon 702 | -10/Exiles | Found Prototype Device 702 | -10/Exiles | Identified Cloak of Protection 705 | -10/Exiles | Found Prototype Slashing Weapon 705 | -10/Exiles | Identified Longsword +1 771 | -10/Exiles | Warned to stay clear of 0b10 Research branches 936 | -10/Exiles | Discovered new exit (range 12) 991 | -10/Exiles | Attacked by the Exiles 1028 | -10/Exiles | Core integrity fell below 50% 1037 | -10/Exiles | Stole three prototypes: Gui. Plasma Cannon, Longsword +1, Cloak of Protection 1037 | -10/Exiles | Entered Mines 1076 | -9/Mines | Discovered new exit (range 15) 1196 | -9/Mines | Entered Materials 1196 | -8/Materials | Evolved 4 slots: Utility x2, Weapon x2 1487 | -8/Materials | Repaired Lgt. Treads 1692 | -8/Materials | Build established: Scavenger-Tank 2401 | -8/Materials | Discovered new exit (range 4) 2452 | -8/Materials | Entered Factory 2452 | -7/Factory | Evolved 2 slots: Utility x2 3162 | -7/Factory | Identified exit to Lower Caves 3831 | -7/Factory | Discovered new exit (range 16) 4101 | -7/Factory | Build established: Tank 4159 | -7/Factory | Entered Lower Caves 4321 | -7/Lower Caves | Spotted B-75 Beast 4333 | -7/Lower Caves | Destroyed B-75 Beast 4570 | -7/Lower Caves | Discovered new exit (range 10) 4731 | -7/Lower Caves | Entered another Lower Caves area 5028 | -7/Lower Caves | Build established: Scavenger-Tank 5251 | -7/Lower Caves | Learned location of 1 exit from Factory 5251 | -7/Lower Caves | Spotted B-75 Beast 5309 | -7/Lower Caves | Spotted 5F-GB7(f) 5310 | -7/Lower Caves | Encountered a Master Thief 5311 | -7/Lower Caves | Longsword +1 stolen by Master Thief 5311 | -7/Lower Caves | Destroyed 5F-GB7(f) 5311 | -7/Lower Caves | Spotted 8P-JDB(f) 5312 | -7/Lower Caves | Encountered a Master Thief 5312 | -7/Lower Caves | Spotted 13-87M(f) 5313 | -7/Lower Caves | Encountered a Master Thief 5313 | -7/Lower Caves | Cloak of Protection stolen by Master Thief 5313 | -7/Lower Caves | Spotted HQ-DQC(f) 5314 | -7/Lower Caves | Encountered a Master Thief 5315 | -7/Lower Caves | Gui. Plasma Cannon stolen by Master Thief 5319 | -7/Lower Caves | Graphene Brace stolen by Master Thief 5384 | -7/Lower Caves | Discovered new exit (range 5) 5413 | -7/Lower Caves | Entered Zion 5641 | -7/Zion | Discovered new exit (range 11) 5834 | -7/Zion | Learned location of Quarantine (-3) 5993 | -7/Zion | Learned location of Data Miner (-6) 6118 | -7/Zion | Learned Factory terminal intel 6562 | -7/Zion | Learned Factory repair station intel 7314 | -7/Zion | Imprinted 7316 | -7/Zion | Declared Zion's savior 7422 | -7/Zion | Build established: Scavenger-Mutant 8425 | -7/Zion | Discovered new exit (range 4) 8427 | -7/Zion | Saw the warning signs outside the Deep Caves entrance 8445 | -7/Zion | Entered Deep Caves 8445 | -7/Deep Caves | Accompanied by 4 allies 8828 | -7/Deep Caves | Build established: Tank 8848 | -7/Deep Caves | Attacked by Z-Imprinter 8898 | -7/Deep Caves | Core integrity fell below 50% 8937 | -7/Deep Caves | Core integrity fell below 20% 8942 | -7/Deep Caves | Destroyed Z-Imprinter 8967 | -7/Deep Caves | Lost 18 parts (2p2n7u7w) 8987 | -7/Deep Caves | Found Prototype Device 8987 | -7/Deep Caves | Identified Zio. Metafield Generator 8998 | -7/Deep Caves | Found Prototype Protection 8998 | -7/Deep Caves | Identified Zio. Weapon Casing 9096 | -7/Deep Caves | Found Prototype Protection 9096 | -7/Deep Caves | Identified Zio. Heavy Carapace 9292 | -7/Deep Caves | Build established: Scavenger-Tank 9407 | -7/Deep Caves | Z-Facility disabled 9551 | -7/Deep Caves | Discovered new exit (range 6) 9563 | -7/Deep Caves | Identified exit to Proximity Caves 9763 | -7/Deep Caves | Spotted as-77193 9785 | -7/Deep Caves | Destroyed by as-77193 with Assembled Focal Cannon Last Messages --------------- 09202_ Acquired 50 matter. 09206_ Acquired 11 matter. 09318_ C1-T9N(o) is busy at the terminal. 09407_ D8-120(o) is busy at the terminal. 09407_ Z-Facility disabled. 09551_ EXIT=FOUND 09563_ EXIT=IDENTIFIED: PROXIMITY CAVES 09565_ Discarded Signal Interpreter. 09765_ as-77193: "DSI9AT1D G8OHIBQ29FWG 26R186 QD12WHW8W33 TDK1 81FTS" 09772_ Zio. Glidesys I destroyed. 09772_ Zio. Heavy Carapace destroyed. 09775_ Zio. Weapon Casing destroyed. 09778_ Imp. Heat Sink destroyed. 09778_ Zio. Laser-M destroyed. 09778_ Zio. Light DM Reactor destroyed. 09780_ Dropped Self-destruct Interrupter. 09782_ Com. Wheel destroyed. 09782_ Zio. Laser-S destroyed. 09785_ Exp. Heat Sink destroyed. 09785_ Plasma Cannon destroyed. Map ----- +----------------------------------------------------+ | ??????????????????????????????????????????????? | | ??????????????????????????????????????????????? | | ??????????????????????????????????????????????? | | ??????????????????????????????????????????????? | | ????????????????????????????????????????????? ? | | ?????????????????????????????????????? #???? | | ?????????????????????????? ?????????? ## ? | | ?????????????????????? ? #?????????# | | ???????????????????? ?????????# ? | | ?????????????????? ????????## ??? | | ????????????????? ! #???????# #??? | | ????????????????* b ! #??????## #??? | | ??????????????? [ #??????# ###? | | ????????????? * g #?????## ## | | ??????????? [ #????## # | | ??????????? ##???# | | ?????????? [[ #???# | | ?????????? = g #???# | | ????????? = = #????# | | ????????? s ###### | | ????????? G = = = h ## | | ????????""" ## #? | | ????????" ### ## | | ?????????" ##########?# # | | ????????" #??????????# | | ?????????" @ ##?????????## | | ????????" # # #??????????# | | ????????" #### ;# ## ##??????????# ## | | ????????""" ???????# ?# ####???????????## ##?# | | ???????????????????##?? ????????????????####??? | | ???????????????????????#??????????????????????? | | | | | | | | | | | | | | | | | | | | | | | | | | | | | | | | | | | | | | | +----------------------------------------------------+ Best States ------------- Heat Dissipation 102 Coolant Potential 65 Energy Generation 27 Energy Capacity 700 Matter Stores 300 Matter Capacity 300 Sight Range 16 Terrain Scan Density 10 Armor Coverage 1200 Weapon Shielding 100 Evasion (%) 42 Recoil Reduction 2 Item Schematics ----------------- Com. Wheel | -8/Materials | Scanalyzed Rocket Launcher | -8/Materials | Scanalyzed Hvy. Rocket Launcher | -7/Zion | Archive Nuclear Pulse Thruster | -7/Zion | Archive Shock Absorption System | -7/Zion | Archive Imp. Target Analyzer | -7/Zion | Archive Flak Gun | -7/Zion | Archive Mak. Transmission Jammer | -7/Zion | Archive Gauss Cannon | -7/Zion | Archive Neutrino Core | -7/Zion | Archive Imp. Coolant Injector | -7/Zion | Archive Mak. Armor Plating | -7/Zion | Archive Imp. System Shield | -7/Zion | Archive Transmission Jammer | -7/Zion | Archive Lrn. Missile Launcher | -7/Zion | Archive Lightning Gun | -7/Zion | Archive EM Disruption Field | -7/Zion | Archive Tiamat Missile Launcher | -7/Zion | Archive Robot Schematics ------------------ S-27 Virus | -7/Zion | Archive K-01 Serf | -7/Zion | Archive Fabricated ------------ Nothing Alien Tech Used ----------------- None Achievements -------------- None Challenges ------------ None Game ------ Seed SpikedNavigationBattery Manual? 0 Play Time 01:15:14 Cumulative 143.2 hours Start 2022.09.25 @ 01:21:43 End 2022.09.25 @ 02:37:47 Sessions 1 Manual Loads 0 Difficulty Rogue Special Mode None Game No. 120 Rogue 117 Adventurer 3 Explorer 0 Win Type - Total 1 Types 1/0/0/0/0/0/0/0/0 Lore% 54 Gallery% 56 Achievement% 49 Wizard Run 0 Options --------- ASCII 0 Keyboard 0 Movement Numpad Keybinds 0 Fullscreen 1 Font 18/SmallcapsGlow Map View 76x50 Tactical HUD 1 Map Filters NONE Filters NONE Steam 1 RUN: e7ca2713-3bf1-419a-a5bb-48f8d45a458e